{"text_format":"1","workbook":"xlsx","n_sheets":6,"sheets":["DATA","KEGIATAN","LAMPIRAN","COVER","BULANAN","HARIAN"],"not_rendered":{"charts":0,"images":7,"macros":1,"external_links":0,"defined_names":6,"comments":0,"pivot_tables":0},"unopened":[],"bounds":{"document_bytes":16777216,"sheet_cells":100000,"rows_first":2000,"rows_last":500,"rows_between":2000,"halvings":0,"cell_chars":16384,"cell_head_chars":4096},"cells_cut":0,"cells_raw":0,"read":"whole","date_system":"1900"}

{"sheet":"DATA","index":0,"n_rows":37,"n_cols":14,"rows_kept":37,"cut":false,"hidden":false,"merged":[[1,1,1,3],[9,1,9,3],[15,9,15,13]]}
[]
[null,"DATA PEJABAT PENILAI"]
[null,"NAMA","H. ENJANG, S.Ag., M.Pd.I."]
[null,"NIP","197406152005011006"]
[null,"PANGKAT","Pembina Utama Muda"]
[null,"GOL. RUANG","IV/c"]
[null,"JABATAN","Guru Ahli Madya","Kepala"]
[null,"UNIT KERJA","Kantor Kementerian Agama Kabupaten Tasikmalaya (PMA 19 Tahun 2019) "]
[]
[null,"DATA PEGAWAI NEGERI SIPIL YANG DINILAI"]
[null,"NAMA","ARIEF PRIBADI, S.Si."]
[null,"NIP","198603112020121005"]
[null,"PANGKAT","Penata Muda"]
[null,"GOL. RUANG","III/a"]
[null,"JABATAN","Guru Ahli Pertama"]
[null,"UNIT KERJA","Kantor Kementerian Agama Kabupaten Tasikmalaya",null,null,null,null,null,null,"APLIKASI LAPORAN KINERJA"]
[null,null,null,null,null,null,null,null,null,null,null,null,null,"versi 12.01.26 by AP_11"]
[null,"INSTANSI","MAN 4 Tasikmalaya",null,null,null,null,null,null,null,null,null,null,"082140206782"]
[null,"TANGGAL",31,{"$f":"CONCATENATE(C19,\" \",C20,\" \",C21)","v":"31 Januari 2026"}]
[null,"BULAN","Januari",{"$f":"UPPER(C20)","v":"JANUARI"}]
[null,"TAHUN",2026]
[null,"GRADE",8,null,null,"Keterangan :"]
[null,"TUKIN",3319000,null,null,null,null,"wajib diisi oleh ASN"]
[null,"NOMOR URUT","21"]
[]
[null,"Januari"]
[null,"Februari"]
[null,"Maret"]
[null,"April"]
[null,"Mei"]
[null,"Juni"]
[null,"Juli"]
[null,"Agustus"]
[null,"September"]
[null,"Oktober"]
[null,"November"]
[null,"Desember"]

{"sheet":"KEGIATAN","index":1,"n_rows":107,"n_cols":13,"rows_kept":107,"cut":false,"hidden":false,"merged":[[37,6,37,7],[38,6,38,7]]}
[null,"Petunjuk Pengisian:",null,null,null,null,"Petunjuk Pengisian:"]
[null,"a.","Ketik Kolom Kegiatan dengan Kegiatan Bulanan",null,null,null,"a.","Copy kegiatan bulanan dari kolom kegiatan (kolom berwarna kuning)"]
[null,"b.","Ketik Kolom Pekerjaan dengan Kegiatan Harian",null,null,null,"b.","Paste value (jangan mengetik manual)"]
[null,null,null,null,null,null,"c.","Jika kegiatan bulanan tidak terdapat pada sheet Lampiran, maka harus dicopy-paste"]
[null,null,null,null,null,null,null,"juga di menu Lampiran, dan Kegiatan Tahunan diketik manual (perhatikan Permenpan RB"]
[null,null,null,null,null,null,null,"No. 16 Tahun 2009)"]
[null,"No","Kegiatan","Pekerjaan","Tanggal",null,"No","Kegiatan Bulanan","Realisasi"]
[null,1,"Mengikuti upacara bendera","Melaksanakan apel pagi hari senin","2025-07-14",null,1,{"$f":"LAMPIRAN!O3","v":"Merencanakan dan melaksanakan pembelajaran"},{"$f":"COUNTIF($C$8:$C$107,H8)","v":0}]
[null,2,null,null,null,null,2,{"$f":"LAMPIRAN!O4","v":"Mengevaluasi dan menilai hasil pembelajaran"},{"$f":"COUNTIF($C$8:$C$107,H9)","v":0}]
[null,3,null,null,null,null,3,{"$f":"LAMPIRAN!O5","v":"Menganalisis hasil pembelajaran"},0]
[null,4,null,null,null,null,4,{"$f":"LAMPIRAN!O6","v":"Melaksanakan tindak lanjut hasil pembelajaran"},0]
[null,5,null,null,null,null,5,{"$f":"LAMPIRAN!O7","v":"Menjadi Kepala Madrasah"},0]
[null,6,null,null,null,null,6,{"$f":"LAMPIRAN!O8","v":"Menjadi Wakil Kepala Madrasah"},0]
[null,7,null,null,null,null,7,{"$f":"LAMPIRAN!O9","v":"Menjadi kepala perpustakaan"},0]
[null,8,null,null,null,null,8,{"$f":"LAMPIRAN!O10","v":"Menjadi kepala laboratorium"},0]
[null,9,null,null,null,null,9,{"$f":"LAMPIRAN!O11","v":"Menjadi wali kelas"},0]
[null,10,null,null,null,null,10,{"$f":"LAMPIRAN!O12","v":"Membimbing guru pemula dalam program induksi"},0]
[null,11,null,null,null,null,11,{"$f":"LAMPIRAN!O13","v":"Membimbing siswa dalam kegiatan ekstrakurikuler"},0]
[null,12,null,null,null,null,12,{"$f":"LAMPIRAN!O14","v":"Menjadi pembimbing pada penyusunan publikasi ilmiah dan karya inovatif"},0,null,null,"OK","CEK"]
[null,13,null,null,null,null,13,{"$f":"LAMPIRAN!O15","v":"Mengikuti diklat fungsional"},0]
[null,14,null,null,null,null,14,{"$f":"LAMPIRAN!O16","v":"Kegiatan kolektif guru yang meningkatkan kompetensi dan/atau keprofesian guru"},0]
[null,15,null,null,null,null,15,{"$f":"LAMPIRAN!O17","v":"Presentasi pada forum ilmiah"},0]
[null,16,null,null,null,null,16,{"$f":"LAMPIRAN!O18","v":"Melaksanakan publikasi ilmiah hasil penelitian atau gagasan ilmu pada bidang pendidikan formal"},0]
[null,17,null,null,null,null,17,{"$f":"LAMPIRAN!O19","v":"Melaksanakan publikasi buku teks pelajaran, buku pengayaan dan pedoman Guru"},0]
[null,18,null,null,null,null,18,{"$f":"LAMPIRAN!O20","v":"Menemukan teknologi tepat guna"},0]
[null,19,null,null,null,null,19,{"$f":"LAMPIRAN!O21","v":"Menemukan / menciptakan karya seni"},0]
[null,20,null,null,null,null,20,{"$f":"LAMPIRAN!O22","v":"Membuat / modifikasi alat pelajaran / peraga / praktikum"},0]
[null,21,null,null,null,null,21,{"$f":"LAMPIRAN!O23","v":"Mengikuti Pengembangan Penyusunan Standar, Pedoman, Soal dan sejenisnya"},0]
[null,22,null,null,null,null,22,{"$f":"LAMPIRAN!O24","v":"Sebagai pengawas ujian penilaian dan evaluasi terhadap proses dan hasil belajar tingkat madrasah"},0]
[null,23,null,null,null,null,23,{"$f":"LAMPIRAN!O25","v":"Sebagai pengawas ujian penilaian dan evaluasi terhadap proses dan hasil belajar tingkat nasional"},0]
[null,24,null,null,null,null,24,{"$f":"LAMPIRAN!O26","v":"Mengikuti upacara bendera"},1]
[null,25,null,null,null,null,25,{"$f":"LAMPIRAN!O27","v":0},0]
[null,26,null,null,null,null,26,{"$f":"LAMPIRAN!O28","v":0},{"$f":"COUNTIF($C$8:$C$107,H33)","v":0}]
[null,27,null,null,null,null,27,{"$f":"LAMPIRAN!O29","v":0},0]
[null,28,null,null,null,null,28,{"$f":"LAMPIRAN!O30","v":0},0]
[null,29,null,null,null,null,29,{"$f":"LAMPIRAN!O31","v":0},0]
[null,30,null,null,null,null,30,{"$f":"LAMPIRAN!O32","v":0},0,null,{"$f":"COUNTA(C8:C107)","v":1}]
[null,31,null,null,null,null,"TOTAL KEGIATAN",null,{"$f":"SUM(I8:I37)","v":1}]
[null,32,null,null,null,null,"STATUS",null,{"$f":"IF(I38=K37,\"OK\",\"CEK\")","v":"OK"}]
[null,33]
[null,34]
[null,35]
[null,36]
[null,37]
[null,38]
[null,39]
[null,40]
[null,41]
[null,42]
[null,43]
[null,44]
[null,45]
[null,46]
[null,47]
[null,48]
[null,49]
[null,50]
[null,51]
[null,52]
[null,53]
[null,54]
[null,55]
[null,56]
[null,57]
[null,58]
[null,59]
[null,60]
[null,61]
[null,62]
[null,63]
[null,64]
[null,65]
[null,66]
[null,67]
[null,68]
[null,69]
[null,70]
[null,71]
[null,72]
[null,73]
[null,74]
[null,75]
[null,76]
[null,77]
[null,78]
[null,79]
[null,80]
[null,81]
[null,82]
[null,83]
[null,84]
[null,85]
[null,86]
[null,87]
[null,88]
[null,89]
[null,90]
[null,91]
[null,92]
[null,93]
[null,94]
[null,95]
[null,96]
[null,97]
[null,98]
[null,99]
[null,100]

{"sheet":"LAMPIRAN","index":2,"n_rows":57,"n_cols":18,"rows_kept":57,"cut":false,"hidden":false,"merged":[]}
[]
[null,null,null,null,null,null,null,null,null,null,null,null,null,"Kode","Kegiatan Bulanan","Kode","Kegiatan Tahunan"]
[null,null,null,null,null,null,null,null,null,null,null,null,null,"1.1.1","Merencanakan dan melaksanakan pembelajaran","2.1","Melaksanakan proses pembelajaran",0]
[null,null,null,null,null,null,null,null,null,null,null,null,null,"1.1.2","Mengevaluasi dan menilai hasil pembelajaran","2.1","Melaksanakan proses pembelajaran",0]
[null,null,null,null,null,null,null,null,null,null,null,null,null,"1.1.3","Menganalisis hasil pembelajaran","2.1","Melaksanakan proses pembelajaran",0]
[null,null,null,null,null,null,null,null,null,null,null,null,null,"1.1.4","Melaksanakan tindak lanjut hasil pembelajaran","2.1","Melaksanakan proses pembelajaran",0]
[null,null,null,null,null,null,null,null,null,null,null,null,null,"3.1","Menjadi Kepala Madrasah","2.3","Melaksanakan tugas lain yang relevan dengan fungsi madrasah",0]
[null,null,null,null,null,null,null,null,null,null,null,null,null,"3.2","Menjadi Wakil Kepala Madrasah","2.3","Melaksanakan tugas lain yang relevan dengan fungsi madrasah",0]
[null,null,null,null,null,null,null,null,null,null,null,null,null,"3.4","Menjadi kepala perpustakaan","2.3","Melaksanakan tugas lain yang relevan dengan fungsi madrasah",0]
[null,null,null,null,null,null,null,null,null,null,null,null,null,"3.5","Menjadi kepala laboratorium","2.3","Melaksanakan tugas lain yang relevan dengan fungsi madrasah",0]
[null,null,null,null,null,null,null,null,null,null,null,null,null,"3.7","Menjadi wali kelas","2.3","Melaksanakan tugas lain yang relevan dengan fungsi madrasah",0]
[null,null,null,null,null,null,null,null,null,null,null,null,null,"3.10","Membimbing guru pemula dalam program induksi","2.3","Melaksanakan tugas lain yang relevan dengan fungsi madrasah",0]
[null,null,null,null,null,null,null,null,null,null,null,null,null,"3.11","Membimbing siswa dalam kegiatan ekstrakurikuler","2.3","Melaksanakan tugas lain yang relevan dengan fungsi madrasah",0]
[null,null,null,null,null,null,null,null,null,null,null,null,null,"3.12","Menjadi pembimbing pada penyusunan publikasi ilmiah dan karya inovatif","2.3","Melaksanakan tugas lain yang relevan dengan fungsi madrasah",0]
[null,null,null,null,null,null,null,null,null,null,null,null,null,"1.1","Mengikuti diklat fungsional","3.1","Melaksanakan pengembangan diri",0]
[null,null,null,null,null,null,null,null,null,null,null,null,null,"1.2","Kegiatan kolektif guru yang meningkatkan kompetensi dan/atau keprofesian guru","3.1","Melaksanakan pengembangan diri",0]
[null,null,null,null,null,null,null,null,null,null,null,null,null,"2.1","Presentasi pada forum ilmiah","3.2","Melaksanakan Publikasi Ilmiah",0]
[null,null,null,null,null,null,null,null,null,null,null,null,null,"2.2","Melaksanakan publikasi ilmiah hasil penelitian atau gagasan ilmu pada bidang pendidikan formal","3.2","Melaksanakan Publikasi Ilmiah",0]
[null,null,null,null,null,null,null,null,null,null,null,null,null,"2.3","Melaksanakan publikasi buku teks pelajaran, buku pengayaan dan pedoman Guru","3.2","Melaksanakan Publikasi Ilmiah",0]
[null,null,null,null,null,null,null,null,null,null,null,null,null,"3.1","Menemukan teknologi tepat guna","3.3","Melaksanakan Karya Inovatif",0]
[null,null,null,null,null,null,null,null,null,null,null,null,null,"3.2","Menemukan / menciptakan karya seni","3.3","Melaksanakan Karya Inovatif",0]
[null,null,null,null,null,null,null,null,null,null,null,null,null,"3.3","Membuat / modifikasi alat pelajaran / peraga / praktikum","3.3","Melaksanakan Karya Inovatif",0]
[null,null,null,null,null,null,null,null,null,null,null,null,null,"3.4","Mengikuti Pengembangan Penyusunan Standar, Pedoman, Soal dan sejenisnya","3.3","Melaksanakan Karya Inovatif",0]
[null,null,null,null,null,null,null,null,null,null,null,null,null,"b.1","Sebagai pengawas ujian penilaian dan evaluasi terhadap proses dan hasil belajar tingkat madrasah",2,"Melaksanakan kegiatan yang mendukung tugas guru",0]
[null,null,null,null,null,null,null,null,null,null,null,null,null,"b.2","Sebagai pengawas ujian penilaian dan evaluasi terhadap proses dan hasil belajar tingkat nasional",2,"Melaksanakan kegiatan yang mendukung tugas guru",0]
[null,null,null,null,null,null,null,null,null,null,null,null,null,null,"Mengikuti upacara bendera",null,"Mengikuti upacara bendera",0]
[null,null,null,null,null,null,null,null,null,null,null,null,null,null,null,null,null,0]
[null,null,null,null,null,null,null,null,null,null,null,null,null,null,null,null,null,0]
[null,null,null,null,null,null,null,null,null,null,null,null,null,null,null,null,null,0]
[null,null,null,null,null,null,null,null,null,null,null,null,null,null,null,null,null,0]
[null,null,null,null,null,null,null,null,null,null,null,null,null,null,null,null,null,0]
[null,null,null,null,null,null,null,null,null,null,null,null,null,null,null,null,null,0]
[null,null,null,null,null,null,null,null,null,null,null,null,null,null,null,null,null,0]
[null,null,null,null,null,null,null,null,null,null,null,null,null,null,null,null,null,0]
[null,null,null,null,null,null,null,null,null,null,null,null,null,null,null,null,null,0]
[null,null,null,null,null,null,null,null,null,null,null,null,null,null,null,null,null,0]
[null,null,null,null,null,null,null,null,null,null,null,null,null,null,null,null,null,0]
[null,null,null,null,null,null,null,null,null,null,null,null,null,null,null,null,null,0]
[null,null,null,null,null,null,null,null,null,null,null,null,null,null,null,null,null,0]
[null,null,null,null,null,null,null,null,null,null,null,null,null,null,null,null,null,0]
[null,null,null,null,null,null,null,null,null,null,null,null,null,null,null,null,null,0]
[null,null,null,null,null,null,null,null,null,null,null,null,null,null,null,null,null,0]
[null,null,null,null,null,null,null,null,null,null,null,null,null,null,null,null,null,0]
[null,null,null,null,null,null,null,null,null,null,null,null,null,null,null,null,null,0]
[null,null,null,null,null,null,null,null,null,null,null,null,null,null,null,null,null,0]
[null,null,null,null,null,null,null,null,null,null,null,null,null,null,null,null,null,0]
[null,null,null,null,null,null,null,null,null,null,null,null,null,null,null,null,null,0]
[null,null,null,null,null,null,null,null,null,null,null,null,null,null,null,null,null,0]
[null,null,null,null,null,null,null,null,null,null,null,null,null,null,null,null,null,0]
[null,null,null,null,null,null,null,null,null,null,null,null,null,null,null,null,null,0]
[null,null,null,null,null,null,null,null,null,null,null,null,null,null,null,null,null,0]
[null,null,null,null,null,null,null,null,null,null,null,null,null,null,null,null,null,0]
[null,null,null,null,null,null,null,null,null,null,null,null,null,null,null,null,null,0]
[null,null,null,null,null,null,null,null,null,null,null,null,null,null,null,null,null,0]
[null,null,null,null,null,null,null,null,null,null,null,null,null,null,null,null,null,0]
[null,null,null,null,null,null,null,null,null,null,null,null,null,null,null,null,null,0]
[null,null,null,null,null,null,null,null,null,null,null,null,null,null,null,null,null,0]

{"sheet":"COVER","index":3,"n_rows":23,"n_cols":9,"rows_kept":23,"cut":false,"hidden":false,"merged":[[12,1,12,6],[0,1,0,8],[1,1,1,8],[2,1,2,8],[3,1,3,8],[6,1,6,3],[6,5,6,8],[7,1,7,3],[7,5,7,7],[8,1,8,3],[8,5,8,7],[9,1,9,3],[9,5,9,7],[20,1,20,7],[14,7,14,8],[15,7,15,8],[17,7,17,8],[18,7,18,8],[14,2,14,6],[15,2,15,6],[17,2,17,6],[18,2,18,6],[16,7,16,8]]}
[null,"LAPORAN DAFTAR HADIR & LAPORAN KINERJA"]
[null,"BULANAN DAN HARIAN"]
[null,{"$f":"\"BULAN\"&\" \"&DATA!D20","v":"BULAN JANUARI"}]
[null,{"$f":"CONCATENATE(\"TAHUN\",\" \",DATA!C21)","v":"TAHUN 2026"}]
[]
[]
[null,"NAMA",null,null,":",{"$f":"DATA!C11","v":"ARIEF PRIBADI, S.Si."}]
[null,"NIP",null,null,":",{"$f":"DATA!C12","v":"198603112020121005"}]
[null,"UNIT KERJA",null,null,":","MAN 4 Tasikmalaya"]
[null,"NOMOR URUT",null,null,":",{"$f":"DATA!C24","v":"21"}]
[]
[]
[null,"Ceklist Kelengkapan Berkas :"]
[]
[null,"NO","KELENGKAPAN",null,null,null,null,"Keterangan"]
[null,1,"Print Out Daftar hadir (Absensi Online Kementerian Agama)",null,null,null,null,"Ada / Tidak *)"]
[null,2,"Print Out Potongan Tunjangan Kinerja (Tukin)",null,null,null,null,"Ada / Tidak *)"]
[null,3,"Laporan Kinerja Bulanan ( LKB ) dan Laporan Kinerja Harian ( LKH ) dari Aplikasi Pusaka",null,null,null,null,"Ada / Tidak *)"]
[null,4,"Print Out Kelengkapan ( Surat Tugas / Cuti / Keterangan Sakit /Surat Keterangan Lainnya ) jika ada",null,null,null,null,"Ada / Tidak *)"]
[]
[null,"* diisi Oleh Petugas / Verifikator Kelengkapan Daftar Hadir"]
[]
[null,null,null,null,null,null,null,null,{"$f":"HARIAN!E112","v":"versi 12.01.26 by AP_11"}]

{"sheet":"BULANAN","index":4,"n_rows":56,"n_cols":11,"rows_kept":56,"cut":false,"hidden":false,"merged":[[40,7,40,8],[41,7,41,8],[42,7,42,8],[43,7,43,8],[44,7,44,8],[40,4,40,6],[41,4,41,6],[42,4,42,6],[43,4,43,6],[44,4,44,6],[28,4,28,6],[29,4,29,6],[30,4,30,6],[31,4,31,6],[40,2,40,3],[41,2,41,3],[42,2,42,3],[43,2,43,3],[44,2,44,3],[35,2,35,3],[36,2,36,3],[37,2,37,3],[38,2,38,3],[39,2,39,3],[30,2,30,3],[31,2,31,3],[32,2,32,3],[33,2,33,3],[34,2,34,3],[30,7,30,8],[31,7,31,8],[37,4,37,6],[38,4,38,6],[39,4,39,6],[32,4,32,6],[33,4,33,6],[34,4,34,6],[35,4,35,6],[36,4,36,6],[37,7,37,8],[38,7,38,8],[39,7,39,8],[32,7,32,8],[33,7,33,8],[34,7,34,8],[35,7,35,8],[36,7,36,8],[48,7,48,9],[17,2,17,3],[18,2,18,3],[19,2,19,3],[20,2,20,3],[21,2,21,3],[22,2,22,3],[23,2,23,3],[24,2,24,3],[25,2,25,3],[26,2,26,3],[17,4,17,6],[18,4,18,6],[19,4,19,6],[20,4,20,6],[21,4,21,6],[45,1,45,9],[46,1,46,9],[25,7,25,8],[27,2,27,3],[28,2,28,3],[29,2,29,3],[17,7,17,8],[18,7,18,8],[21,7,21,8],[22,7,22,8],[23,7,23,8],[24,7,24,8],[22,4,22,6],[23,4,23,6],[24,4,24,6],[25,4,25,6],[26,4,26,6],[27,7,27,8],[28,7,28,8],[29,7,29,8],[27,4,27,6],[2,4,2,10],[3,4,3,10],[10,3,11,4],[10,7,11,10],[12,3,14,4],[12,7,14,10],[7,7,7,10],[8,7,8,10],[9,7,9,10],[6,2,6,4],[6,6,6,10],[7,3,7,4],[8,3,8,4],[9,3,9,4],[19,7,19,8],[20,7,20,8],[16,2,16,3],[16,4,16,6],[16,7,16,8],[26,7,26,8]]}
[]
[]
[null,null,null,null,"LAPORAN BULANAN KINERJA"]
[null,null,null,null,{"$f":"CONCATENATE(DATA!C20,\" \",DATA!C21)","v":"Januari 2026"}]
[]
[]
[null,"No","I. Pejabat Penilai",null,null,"No","II. Pegawai Negeri Sipil yang Dinilai"]
[null,1,"NAMA",{"$f":"DATA!C3","v":"H. ENJANG, S.Ag., M.Pd.I."},null,1,"NAMA",{"$f":"DATA!C11","v":"ARIEF PRIBADI, S.Si."}]
[null,2,"NIP",{"$f":"DATA!C4","v":"197406152005011006"},null,2,"NIP",{"$f":"DATA!C12","v":"198603112020121005"}]
[null,3,"Pangkat - Gol Ruang",{"$f":"CONCATENATE(DATA!C5,\" \",\"-\",\" \",DATA!C6)","v":"Pembina Utama Muda - IV/c"},null,3,"Pangkat - Gol Ruang",{"$f":"CONCATENATE(DATA!C13,\" \",\"-\",\" \",DATA!C14)","v":"Penata Muda - III/a"}]
[null,4,"Jabatan",{"$f":"CONCATENATE(DATA!C7,\" \",\"/\",\" \",DATA!D7,\" \",DATA!C18)","v":"Guru Ahli Madya / Kepala MAN 4 Tasikmalaya"},null,4,"Jabatan",{"$f":"CONCATENATE(DATA!C15,\" \",DATA!C18)","v":"Guru Ahli Pertama MAN 4 Tasikmalaya"}]
[]
[null,5,"Unit Kerja",{"$f":"DATA!C8","v":"Kantor Kementerian Agama Kabupaten Tasikmalaya (PMA 19 Tahun 2019) "},null,5,"Unit Kerja",{"$f":"DATA!C16","v":"Kantor Kementerian Agama Kabupaten Tasikmalaya"}]
[]
[]
[]
[null,"No","Kegiatan Bulanan",null,"Kegiatan Tahunan",null,null,"Target",null,"Realisasi","Hasil"]
[null,null,{"$f":"LAMPIRAN!O3","v":"Merencanakan dan melaksanakan pembelajaran"},null,{"$f":"IFERROR(VLOOKUP(C18,LAMPIRAN!$O$3:$Q$57,3,0),0)","v":"Melaksanakan proses pembelajaran"},null,null,{"$f":"J18","v":0},null,{"$f":"KEGIATAN!I8","v":0},{"$f":"IFERROR(J18/H18,0)","v":0}]
[null,null,{"$f":"LAMPIRAN!O4","v":"Mengevaluasi dan menilai hasil pembelajaran"},null,{"$f":"IFERROR(VLOOKUP(C19,LAMPIRAN!$O$3:$Q$57,3,0),0)","v":"Melaksanakan proses pembelajaran"},null,null,{"$f":"J19","v":0},null,{"$f":"KEGIATAN!I9","v":0},0]
[null,null,{"$f":"LAMPIRAN!O5","v":"Menganalisis hasil pembelajaran"},null,{"$f":"IFERROR(VLOOKUP(C20,LAMPIRAN!$O$3:$Q$57,3,0),0)","v":"Melaksanakan proses pembelajaran"},null,null,0,null,{"$f":"KEGIATAN!I10","v":0},0]
[null,null,{"$f":"LAMPIRAN!O6","v":"Melaksanakan tindak lanjut hasil pembelajaran"},null,{"$f":"IFERROR(VLOOKUP(C21,LAMPIRAN!$O$3:$Q$57,3,0),0)","v":"Melaksanakan proses pembelajaran"},null,null,0,null,{"$f":"KEGIATAN!I11","v":0},0]
[null,null,{"$f":"LAMPIRAN!O7","v":"Menjadi Kepala Madrasah"},null,{"$f":"IFERROR(VLOOKUP(C22,LAMPIRAN!$O$3:$Q$57,3,0),0)","v":"Melaksanakan tugas lain yang relevan dengan fungsi madrasah"},null,null,0,null,{"$f":"KEGIATAN!I12","v":0},0]
[null,null,{"$f":"LAMPIRAN!O8","v":"Menjadi Wakil Kepala Madrasah"},null,{"$f":"IFERROR(VLOOKUP(C23,LAMPIRAN!$O$3:$Q$57,3,0),0)","v":"Melaksanakan tugas lain yang relevan dengan fungsi madrasah"},null,null,0,null,{"$f":"KEGIATAN!I13","v":0},0]
[null,null,{"$f":"LAMPIRAN!O9","v":"Menjadi kepala perpustakaan"},null,{"$f":"IFERROR(VLOOKUP(C24,LAMPIRAN!$O$3:$Q$57,3,0),0)","v":"Melaksanakan tugas lain yang relevan dengan fungsi madrasah"},null,null,0,null,{"$f":"KEGIATAN!I14","v":0},0]
[null,null,{"$f":"LAMPIRAN!O10","v":"Menjadi kepala laboratorium"},null,{"$f":"IFERROR(VLOOKUP(C25,LAMPIRAN!$O$3:$Q$57,3,0),0)","v":"Melaksanakan tugas lain yang relevan dengan fungsi madrasah"},null,null,0,null,{"$f":"KEGIATAN!I15","v":0},0]
[null,null,{"$f":"LAMPIRAN!O11","v":"Menjadi wali kelas"},null,{"$f":"IFERROR(VLOOKUP(C26,LAMPIRAN!$O$3:$Q$57,3,0),0)","v":"Melaksanakan tugas lain yang relevan dengan fungsi madrasah"},null,null,0,null,{"$f":"KEGIATAN!I16","v":0},0]
[null,null,{"$f":"LAMPIRAN!O12","v":"Membimbing guru pemula dalam program induksi"},null,{"$f":"IFERROR(VLOOKUP(C27,LAMPIRAN!$O$3:$Q$57,3,0),0)","v":"Melaksanakan tugas lain yang relevan dengan fungsi madrasah"},null,null,{"$f":"J27","v":0},null,{"$f":"KEGIATAN!I17","v":0},0]
[null,null,{"$f":"LAMPIRAN!O13","v":"Membimbing siswa dalam kegiatan ekstrakurikuler"},null,{"$f":"IFERROR(VLOOKUP(C28,LAMPIRAN!$O$3:$Q$57,3,0),0)","v":"Melaksanakan tugas lain yang relevan dengan fungsi madrasah"},null,null,{"$f":"J28","v":0},null,{"$f":"KEGIATAN!I18","v":0},0]
[null,null,{"$f":"LAMPIRAN!O14","v":"Menjadi pembimbing pada penyusunan publikasi ilmiah dan karya inovatif"},null,{"$f":"IFERROR(VLOOKUP(C29,LAMPIRAN!$O$3:$Q$57,3,0),0)","v":"Melaksanakan tugas lain yang relevan dengan fungsi madrasah"},null,null,0,null,{"$f":"KEGIATAN!I19","v":0},0]
[null,null,{"$f":"LAMPIRAN!O15","v":"Mengikuti diklat fungsional"},null,{"$f":"IFERROR(VLOOKUP(C30,LAMPIRAN!$O$3:$Q$57,3,0),0)","v":"Melaksanakan pengembangan diri"},null,null,0,null,{"$f":"KEGIATAN!I20","v":0},0]
[null,null,{"$f":"LAMPIRAN!O16","v":"Kegiatan kolektif guru yang meningkatkan kompetensi dan/atau keprofesian guru"},null,{"$f":"IFERROR(VLOOKUP(C31,LAMPIRAN!$O$3:$Q$57,3,0),0)","v":"Melaksanakan pengembangan diri"},null,null,0,null,{"$f":"KEGIATAN!I21","v":0},0]
[null,null,{"$f":"LAMPIRAN!O17","v":"Presentasi pada forum ilmiah"},null,{"$f":"IFERROR(VLOOKUP(C32,LAMPIRAN!$O$3:$Q$57,3,0),0)","v":"Melaksanakan Publikasi Ilmiah"},null,null,0,null,{"$f":"KEGIATAN!I22","v":0},0]
[null,null,{"$f":"LAMPIRAN!O18","v":"Melaksanakan publikasi ilmiah hasil penelitian atau gagasan ilmu pada bidang pendidikan formal"},null,{"$f":"IFERROR(VLOOKUP(C33,LAMPIRAN!$O$3:$Q$57,3,0),0)","v":"Melaksanakan Publikasi Ilmiah"},null,null,0,null,{"$f":"KEGIATAN!I23","v":0},0]
[null,null,{"$f":"LAMPIRAN!O19","v":"Melaksanakan publikasi buku teks pelajaran, buku pengayaan dan pedoman Guru"},null,{"$f":"IFERROR(VLOOKUP(C34,LAMPIRAN!$O$3:$Q$57,3,0),0)","v":"Melaksanakan Publikasi Ilmiah"},null,null,0,null,{"$f":"KEGIATAN!I24","v":0},0]
[null,null,{"$f":"LAMPIRAN!O20","v":"Menemukan teknologi tepat guna"},null,{"$f":"IFERROR(VLOOKUP(C35,LAMPIRAN!$O$3:$Q$57,3,0),0)","v":"Melaksanakan Karya Inovatif"},null,null,{"$f":"J35","v":0},null,{"$f":"KEGIATAN!I25","v":0},0]
[null,null,{"$f":"LAMPIRAN!O21","v":"Menemukan / menciptakan karya seni"},null,{"$f":"IFERROR(VLOOKUP(C36,LAMPIRAN!$O$3:$Q$57,3,0),0)","v":"Melaksanakan Karya Inovatif"},null,null,{"$f":"J36","v":0},null,{"$f":"KEGIATAN!I26","v":0},0]
[null,null,{"$f":"LAMPIRAN!O22","v":"Membuat / modifikasi alat pelajaran / peraga / praktikum"},null,{"$f":"IFERROR(VLOOKUP(C37,LAMPIRAN!$O$3:$Q$57,3,0),0)","v":"Melaksanakan Karya Inovatif"},null,null,0,null,{"$f":"KEGIATAN!I27","v":0},0]
[null,null,{"$f":"LAMPIRAN!O23","v":"Mengikuti Pengembangan Penyusunan Standar, Pedoman, Soal dan sejenisnya"},null,{"$f":"IFERROR(VLOOKUP(C38,LAMPIRAN!$O$3:$Q$57,3,0),0)","v":"Melaksanakan Karya Inovatif"},null,null,0,null,{"$f":"KEGIATAN!I28","v":0},0]
[null,null,{"$f":"LAMPIRAN!O24","v":"Sebagai pengawas ujian penilaian dan evaluasi terhadap proses dan hasil belajar tingkat madrasah"},null,{"$f":"IFERROR(VLOOKUP(C39,LAMPIRAN!$O$3:$Q$57,3,0),0)","v":"Melaksanakan kegiatan yang mendukung tugas guru"},null,null,0,null,{"$f":"KEGIATAN!I29","v":0},0]
[null,null,{"$f":"LAMPIRAN!O25","v":"Sebagai pengawas ujian penilaian dan evaluasi terhadap proses dan hasil belajar tingkat nasional"},null,{"$f":"IFERROR(VLOOKUP(C40,LAMPIRAN!$O$3:$Q$57,3,0),0)","v":"Melaksanakan kegiatan yang mendukung tugas guru"},null,null,0,null,{"$f":"KEGIATAN!I30","v":0},0]
[null,null,{"$f":"LAMPIRAN!O26","v":"Mengikuti upacara bendera"},null,{"$f":"IFERROR(VLOOKUP(C41,LAMPIRAN!$O$3:$Q$57,3,0),0)","v":"Mengikuti upacara bendera"},null,null,{"$f":"J41","v":1},null,{"$f":"KEGIATAN!I31","v":1},1]
[null,null,{"$f":"LAMPIRAN!O27","v":0},null,{"$f":"IFERROR(VLOOKUP(C42,LAMPIRAN!$O$3:$Q$57,3,0),0)","v":0},null,null,{"$f":"J42","v":0},null,{"$f":"KEGIATAN!I32","v":0},0]
[null,null,{"$f":"LAMPIRAN!O28","v":0},null,{"$f":"IFERROR(VLOOKUP(C43,LAMPIRAN!$O$3:$Q$57,3,0),0)","v":0},null,null,{"$f":"J43","v":0},null,{"$f":"KEGIATAN!I33","v":0},0]
[null,null,{"$f":"LAMPIRAN!O29","v":0},null,{"$f":"IFERROR(VLOOKUP(C44,LAMPIRAN!$O$3:$Q$57,3,0),0)","v":0},null,null,{"$f":"J44","v":0},null,{"$f":"KEGIATAN!I34","v":0},0]
[null,null,{"$f":"LAMPIRAN!O30","v":0},null,{"$f":"IFERROR(VLOOKUP(C45,LAMPIRAN!$O$3:$Q$57,3,0),0)","v":0},null,null,{"$f":"J45","v":0},null,{"$f":"KEGIATAN!I35","v":0},0]
[null,"Capaian SKP",null,null,null,null,null,null,null,null,{"$f":"IFERROR(AVERAGEIF(K18:K45,\">0%\"),\"0%\")","v":1}]
[null,"Tunjangan Dasar",null,null,null,null,null,null,null,null,{"$f":"DATA!C23","v":3319000}]
[null,{"$f":"DATA!N17","v":"versi 12.01.26 by AP_11"}]
[null,null,null,null,null,null,null,{"$f":"DATA!D19","v":"31 Januari 2026"}]
[null,null,null,"Pejabat Penilai",null,null,null,null,"Aparatur Sipil Negara (ASN) yang Dinilai"]
[]
[]
[]
[]
[null,null,null,{"$f":"D8","v":"H. ENJANG, S.Ag., M.Pd.I."},null,null,null,null,{"$f":"H8","v":"ARIEF PRIBADI, S.Si."}]
[null,null,null,{"$f":"CONCATENATE(\"NIP\",\" \",\":\",\" \",D9)","v":"NIP : 197406152005011006"},null,null,null,null,{"$f":"CONCATENATE(\"NIP\",\" \",\":\",\" \",H9)","v":"NIP : 198603112020121005"}]

{"sheet":"HARIAN","index":5,"n_rows":120,"n_cols":7,"rows_kept":120,"cut":false,"hidden":false,"merged":[[112,3,112,4],[113,3,113,4],[118,3,118,4],[119,3,119,4],[4,3,4,4],[5,3,5,4],[6,3,6,4],[7,3,7,4],[8,3,8,4]]}
[]
[null,"LAPORAN KEGIATAN HARIAN"]
[null,{"$f":"BULANAN!E4","v":"Januari 2026"}]
[]
[null,1,"NAMA",{"$f":"CONCATENATE(\":\",\" \",BULANAN!H8)","v":": ARIEF PRIBADI, S.Si."}]
[null,2,"NIP",{"$f":"CONCATENATE(\":\",\" \",BULANAN!H9)","v":": 198603112020121005"}]
[null,3,"Pangkat-Gol",{"$f":"CONCATENATE(\":\",\" \",BULANAN!H10)","v":": Penata Muda - III/a"}]
[null,4,"Jabatan",{"$f":"CONCATENATE(\":\",\" \",BULANAN!H11)","v":": Guru Ahli Pertama MAN 4 Tasikmalaya"}]
[null,5,"Unit Kerja",{"$f":"CONCATENATE(\":\",\" \",BULANAN!H13)","v":": Kantor Kementerian Agama Kabupaten Tasikmalaya"}]
[]
[null,"No","Kegiatan","Pekerjaan","Tanggal"]
[null,null,{"$f":"KEGIATAN!C8","v":"Mengikuti upacara bendera"},{"$f":"KEGIATAN!D8","v":"Melaksanakan apel pagi hari senin"},{"$f":"KEGIATAN!E8","v":"2025-07-14"},null,{"$f":"COUNTA(KEGIATAN!C8)","v":1}]
[null,null,{"$f":"KEGIATAN!C9","v":0},{"$f":"KEGIATAN!D9","v":0},{"$f":"KEGIATAN!E9","v":"00:00:00"},null,{"$f":"COUNTA(KEGIATAN!C9)","v":0}]
[null,null,{"$f":"KEGIATAN!C10","v":0},{"$f":"KEGIATAN!D10","v":0},{"$f":"KEGIATAN!E10","v":"00:00:00"},null,{"$f":"COUNTA(KEGIATAN!C10)","v":0}]
[null,null,{"$f":"KEGIATAN!C11","v":0},{"$f":"KEGIATAN!D11","v":0},{"$f":"KEGIATAN!E11","v":"00:00:00"},null,{"$f":"COUNTA(KEGIATAN!C11)","v":0}]
[null,null,{"$f":"KEGIATAN!C12","v":0},{"$f":"KEGIATAN!D12","v":0},{"$f":"KEGIATAN!E12","v":"00:00:00"},null,{"$f":"COUNTA(KEGIATAN!C12)","v":0}]
[null,null,{"$f":"KEGIATAN!C13","v":0},{"$f":"KEGIATAN!D13","v":0},{"$f":"KEGIATAN!E13","v":"00:00:00"},null,{"$f":"COUNTA(KEGIATAN!C13)","v":0}]
[null,null,{"$f":"KEGIATAN!C14","v":0},{"$f":"KEGIATAN!D14","v":0},{"$f":"KEGIATAN!E14","v":"00:00:00"},null,{"$f":"COUNTA(KEGIATAN!C14)","v":0}]
[null,null,{"$f":"KEGIATAN!C15","v":0},{"$f":"KEGIATAN!D15","v":0},{"$f":"KEGIATAN!E15","v":"00:00:00"},null,{"$f":"COUNTA(KEGIATAN!C15)","v":0}]
[null,null,{"$f":"KEGIATAN!C16","v":0},{"$f":"KEGIATAN!D16","v":0},{"$f":"KEGIATAN!E16","v":"00:00:00"},null,{"$f":"COUNTA(KEGIATAN!C16)","v":0}]
[null,null,{"$f":"KEGIATAN!C17","v":0},{"$f":"KEGIATAN!D17","v":0},{"$f":"KEGIATAN!E17","v":"00:00:00"},null,{"$f":"COUNTA(KEGIATAN!C17)","v":0}]
[null,null,{"$f":"KEGIATAN!C18","v":0},{"$f":"KEGIATAN!D18","v":0},{"$f":"KEGIATAN!E18","v":"00:00:00"},null,{"$f":"COUNTA(KEGIATAN!C18)","v":0}]
[null,null,{"$f":"KEGIATAN!C19","v":0},{"$f":"KEGIATAN!D19","v":0},{"$f":"KEGIATAN!E19","v":"00:00:00"},null,{"$f":"COUNTA(KEGIATAN!C19)","v":0}]
[null,null,{"$f":"KEGIATAN!C20","v":0},{"$f":"KEGIATAN!D20","v":0},{"$f":"KEGIATAN!E20","v":"00:00:00"},null,{"$f":"COUNTA(KEGIATAN!C20)","v":0}]
[null,null,{"$f":"KEGIATAN!C21","v":0},{"$f":"KEGIATAN!D21","v":0},{"$f":"KEGIATAN!E21","v":"00:00:00"},null,{"$f":"COUNTA(KEGIATAN!C21)","v":0}]
[null,null,{"$f":"KEGIATAN!C22","v":0},{"$f":"KEGIATAN!D22","v":0},{"$f":"KEGIATAN!E22","v":"00:00:00"},null,{"$f":"COUNTA(KEGIATAN!C22)","v":0}]
[null,null,{"$f":"KEGIATAN!C23","v":0},{"$f":"KEGIATAN!D23","v":0},{"$f":"KEGIATAN!E23","v":"00:00:00"},null,{"$f":"COUNTA(KEGIATAN!C23)","v":0}]
[null,null,{"$f":"KEGIATAN!C24","v":0},{"$f":"KEGIATAN!D24","v":0},{"$f":"KEGIATAN!E24","v":"00:00:00"},null,{"$f":"COUNTA(KEGIATAN!C24)","v":0}]
[null,null,{"$f":"KEGIATAN!C25","v":0},{"$f":"KEGIATAN!D25","v":0},{"$f":"KEGIATAN!E25","v":"00:00:00"},null,{"$f":"COUNTA(KEGIATAN!C25)","v":0}]
[null,null,{"$f":"KEGIATAN!C26","v":0},{"$f":"KEGIATAN!D26","v":0},{"$f":"KEGIATAN!E26","v":"00:00:00"},null,{"$f":"COUNTA(KEGIATAN!C26)","v":0}]
[null,null,{"$f":"KEGIATAN!C27","v":0},{"$f":"KEGIATAN!D27","v":0},{"$f":"KEGIATAN!E27","v":"00:00:00"},null,{"$f":"COUNTA(KEGIATAN!C27)","v":0}]
[null,null,{"$f":"KEGIATAN!C28","v":0},{"$f":"KEGIATAN!D28","v":0},{"$f":"KEGIATAN!E28","v":"00:00:00"},null,{"$f":"COUNTA(KEGIATAN!C28)","v":0}]
[null,null,{"$f":"KEGIATAN!C29","v":0},{"$f":"KEGIATAN!D29","v":0},{"$f":"KEGIATAN!E29","v":"00:00:00"},null,{"$f":"COUNTA(KEGIATAN!C29)","v":0}]
[null,null,{"$f":"KEGIATAN!C30","v":0},{"$f":"KEGIATAN!D30","v":0},{"$f":"KEGIATAN!E30","v":"00:00:00"},null,{"$f":"COUNTA(KEGIATAN!C30)","v":0}]
[null,null,{"$f":"KEGIATAN!C31","v":0},{"$f":"KEGIATAN!D31","v":0},{"$f":"KEGIATAN!E31","v":"00:00:00"},null,{"$f":"COUNTA(KEGIATAN!C31)","v":0}]
[null,null,{"$f":"KEGIATAN!C32","v":0},{"$f":"KEGIATAN!D32","v":0},{"$f":"KEGIATAN!E32","v":"00:00:00"},null,{"$f":"COUNTA(KEGIATAN!C32)","v":0}]
[null,null,{"$f":"KEGIATAN!C33","v":0},{"$f":"KEGIATAN!D33","v":0},{"$f":"KEGIATAN!E33","v":"00:00:00"},null,{"$f":"COUNTA(KEGIATAN!C33)","v":0}]
[null,null,{"$f":"KEGIATAN!C34","v":0},{"$f":"KEGIATAN!D34","v":0},{"$f":"KEGIATAN!E34","v":"00:00:00"},null,{"$f":"COUNTA(KEGIATAN!C34)","v":0}]
[null,null,{"$f":"KEGIATAN!C35","v":0},{"$f":"KEGIATAN!D35","v":0},{"$f":"KEGIATAN!E35","v":"00:00:00"},null,{"$f":"COUNTA(KEGIATAN!C35)","v":0}]
[null,null,{"$f":"KEGIATAN!C36","v":0},{"$f":"KEGIATAN!D36","v":0},{"$f":"KEGIATAN!E36","v":"00:00:00"},null,{"$f":"COUNTA(KEGIATAN!C36)","v":0}]
[null,null,{"$f":"KEGIATAN!C37","v":0},{"$f":"KEGIATAN!D37","v":0},{"$f":"KEGIATAN!E37","v":"00:00:00"},null,{"$f":"COUNTA(KEGIATAN!C37)","v":0}]
[null,null,{"$f":"KEGIATAN!C38","v":0},{"$f":"KEGIATAN!D38","v":0},{"$f":"KEGIATAN!E38","v":"00:00:00"},null,{"$f":"COUNTA(KEGIATAN!C38)","v":0}]
[null,null,{"$f":"KEGIATAN!C39","v":0},{"$f":"KEGIATAN!D39","v":0},{"$f":"KEGIATAN!E39","v":"00:00:00"},null,{"$f":"COUNTA(KEGIATAN!C39)","v":0}]
[null,null,{"$f":"KEGIATAN!C40","v":0},{"$f":"KEGIATAN!D40","v":0},{"$f":"KEGIATAN!E40","v":"00:00:00"},null,{"$f":"COUNTA(KEGIATAN!C40)","v":0}]
[null,null,{"$f":"KEGIATAN!C41","v":0},{"$f":"KEGIATAN!D41","v":0},{"$f":"KEGIATAN!E41","v":"00:00:00"},null,{"$f":"COUNTA(KEGIATAN!C41)","v":0}]
[null,null,{"$f":"KEGIATAN!C42","v":0},{"$f":"KEGIATAN!D42","v":0},{"$f":"KEGIATAN!E42","v":"00:00:00"},null,{"$f":"COUNTA(KEGIATAN!C42)","v":0}]
[null,null,{"$f":"KEGIATAN!C43","v":0},{"$f":"KEGIATAN!D43","v":0},{"$f":"KEGIATAN!E43","v":"00:00:00"},null,{"$f":"COUNTA(KEGIATAN!C43)","v":0}]
[null,null,{"$f":"KEGIATAN!C44","v":0},{"$f":"KEGIATAN!D44","v":0},{"$f":"KEGIATAN!E44","v":"00:00:00"},null,{"$f":"COUNTA(KEGIATAN!C44)","v":0}]
[null,null,{"$f":"KEGIATAN!C45","v":0},{"$f":"KEGIATAN!D45","v":0},{"$f":"KEGIATAN!E45","v":"00:00:00"},null,{"$f":"COUNTA(KEGIATAN!C45)","v":0}]
[null,null,{"$f":"KEGIATAN!C46","v":0},{"$f":"KEGIATAN!D46","v":0},{"$f":"KEGIATAN!E46","v":"00:00:00"},null,{"$f":"COUNTA(KEGIATAN!C46)","v":0}]
[null,null,{"$f":"KEGIATAN!C47","v":0},{"$f":"KEGIATAN!D47","v":0},{"$f":"KEGIATAN!E47","v":"00:00:00"},null,{"$f":"COUNTA(KEGIATAN!C47)","v":0}]
[null,null,{"$f":"KEGIATAN!C48","v":0},{"$f":"KEGIATAN!D48","v":0},{"$f":"KEGIATAN!E48","v":"00:00:00"},null,{"$f":"COUNTA(KEGIATAN!C48)","v":0}]
[null,null,{"$f":"KEGIATAN!C49","v":0},{"$f":"KEGIATAN!D49","v":0},{"$f":"KEGIATAN!E49","v":"00:00:00"},null,{"$f":"COUNTA(KEGIATAN!C49)","v":0}]
[null,null,{"$f":"KEGIATAN!C50","v":0},{"$f":"KEGIATAN!D50","v":0},{"$f":"KEGIATAN!E50","v":"00:00:00"},null,{"$f":"COUNTA(KEGIATAN!C50)","v":0}]
[null,null,{"$f":"KEGIATAN!C51","v":0},{"$f":"KEGIATAN!D51","v":0},{"$f":"KEGIATAN!E51","v":"00:00:00"},null,{"$f":"COUNTA(KEGIATAN!C51)","v":0}]
[null,null,{"$f":"KEGIATAN!C52","v":0},{"$f":"KEGIATAN!D52","v":0},{"$f":"KEGIATAN!E52","v":"00:00:00"},null,{"$f":"COUNTA(KEGIATAN!C52)","v":0}]
[null,null,{"$f":"KEGIATAN!C53","v":0},{"$f":"KEGIATAN!D53","v":0},{"$f":"KEGIATAN!E53","v":"00:00:00"},null,{"$f":"COUNTA(KEGIATAN!C53)","v":0}]
[null,null,{"$f":"KEGIATAN!C54","v":0},{"$f":"KEGIATAN!D54","v":0},{"$f":"KEGIATAN!E54","v":"00:00:00"},null,{"$f":"COUNTA(KEGIATAN!C54)","v":0}]
[null,null,{"$f":"KEGIATAN!C55","v":0},{"$f":"KEGIATAN!D55","v":0},{"$f":"KEGIATAN!E55","v":"00:00:00"},null,{"$f":"COUNTA(KEGIATAN!C55)","v":0}]
[null,null,{"$f":"KEGIATAN!C56","v":0},{"$f":"KEGIATAN!D56","v":0},{"$f":"KEGIATAN!E56","v":"00:00:00"},null,{"$f":"COUNTA(KEGIATAN!C56)","v":0}]
[null,null,{"$f":"KEGIATAN!C57","v":0},{"$f":"KEGIATAN!D57","v":0},{"$f":"KEGIATAN!E57","v":"00:00:00"},null,{"$f":"COUNTA(KEGIATAN!C57)","v":0}]
[null,null,{"$f":"KEGIATAN!C58","v":0},{"$f":"KEGIATAN!D58","v":0},{"$f":"KEGIATAN!E58","v":"00:00:00"},null,{"$f":"COUNTA(KEGIATAN!C58)","v":0}]
[null,null,{"$f":"KEGIATAN!C59","v":0},{"$f":"KEGIATAN!D59","v":0},{"$f":"KEGIATAN!E59","v":"00:00:00"},null,{"$f":"COUNTA(KEGIATAN!C59)","v":0}]
[null,null,{"$f":"KEGIATAN!C60","v":0},{"$f":"KEGIATAN!D60","v":0},{"$f":"KEGIATAN!E60","v":"00:00:00"},null,{"$f":"COUNTA(KEGIATAN!C60)","v":0}]
[null,null,{"$f":"KEGIATAN!C61","v":0},{"$f":"KEGIATAN!D61","v":0},{"$f":"KEGIATAN!E61","v":"00:00:00"},null,{"$f":"COUNTA(KEGIATAN!C61)","v":0}]
[null,null,{"$f":"KEGIATAN!C62","v":0},{"$f":"KEGIATAN!D62","v":0},{"$f":"KEGIATAN!E62","v":"00:00:00"},null,{"$f":"COUNTA(KEGIATAN!C62)","v":0}]
[null,null,{"$f":"KEGIATAN!C63","v":0},{"$f":"KEGIATAN!D63","v":0},{"$f":"KEGIATAN!E63","v":"00:00:00"},null,{"$f":"COUNTA(KEGIATAN!C63)","v":0}]
[null,null,{"$f":"KEGIATAN!C64","v":0},{"$f":"KEGIATAN!D64","v":0},{"$f":"KEGIATAN!E64","v":"00:00:00"},null,{"$f":"COUNTA(KEGIATAN!C64)","v":0}]
[null,null,{"$f":"KEGIATAN!C65","v":0},{"$f":"KEGIATAN!D65","v":0},{"$f":"KEGIATAN!E65","v":"00:00:00"},null,{"$f":"COUNTA(KEGIATAN!C65)","v":0}]
[null,null,{"$f":"KEGIATAN!C66","v":0},{"$f":"KEGIATAN!D66","v":0},{"$f":"KEGIATAN!E66","v":"00:00:00"},null,{"$f":"COUNTA(KEGIATAN!C66)","v":0}]
[null,null,{"$f":"KEGIATAN!C67","v":0},{"$f":"KEGIATAN!D67","v":0},{"$f":"KEGIATAN!E67","v":"00:00:00"},null,{"$f":"COUNTA(KEGIATAN!C67)","v":0}]
[null,null,{"$f":"KEGIATAN!C68","v":0},{"$f":"KEGIATAN!D68","v":0},{"$f":"KEGIATAN!E68","v":"00:00:00"},null,{"$f":"COUNTA(KEGIATAN!C68)","v":0}]
[null,null,{"$f":"KEGIATAN!C69","v":0},{"$f":"KEGIATAN!D69","v":0},{"$f":"KEGIATAN!E69","v":"00:00:00"},null,{"$f":"COUNTA(KEGIATAN!C69)","v":0}]
[null,null,{"$f":"KEGIATAN!C70","v":0},{"$f":"KEGIATAN!D70","v":0},{"$f":"KEGIATAN!E70","v":"00:00:00"},null,{"$f":"COUNTA(KEGIATAN!C70)","v":0}]
[null,null,{"$f":"KEGIATAN!C71","v":0},{"$f":"KEGIATAN!D71","v":0},{"$f":"KEGIATAN!E71","v":"00:00:00"},null,{"$f":"COUNTA(KEGIATAN!C71)","v":0}]
[null,null,{"$f":"KEGIATAN!C72","v":0},{"$f":"KEGIATAN!D72","v":0},{"$f":"KEGIATAN!E72","v":"00:00:00"},null,{"$f":"COUNTA(KEGIATAN!C72)","v":0}]
[null,null,{"$f":"KEGIATAN!C73","v":0},{"$f":"KEGIATAN!D73","v":0},{"$f":"KEGIATAN!E73","v":"00:00:00"},null,{"$f":"COUNTA(KEGIATAN!C73)","v":0}]
[null,null,{"$f":"KEGIATAN!C74","v":0},{"$f":"KEGIATAN!D74","v":0},{"$f":"KEGIATAN!E74","v":"00:00:00"},null,{"$f":"COUNTA(KEGIATAN!C74)","v":0}]
[null,null,{"$f":"KEGIATAN!C75","v":0},{"$f":"KEGIATAN!D75","v":0},{"$f":"KEGIATAN!E75","v":"00:00:00"},null,{"$f":"COUNTA(KEGIATAN!C75)","v":0}]
[null,null,{"$f":"KEGIATAN!C76","v":0},{"$f":"KEGIATAN!D76","v":0},{"$f":"KEGIATAN!E76","v":"00:00:00"},null,{"$f":"COUNTA(KEGIATAN!C76)","v":0}]
[null,null,{"$f":"KEGIATAN!C77","v":0},{"$f":"KEGIATAN!D77","v":0},{"$f":"KEGIATAN!E77","v":"00:00:00"},null,{"$f":"COUNTA(KEGIATAN!C77)","v":0}]
[null,null,{"$f":"KEGIATAN!C78","v":0},{"$f":"KEGIATAN!D78","v":0},{"$f":"KEGIATAN!E78","v":"00:00:00"},null,{"$f":"COUNTA(KEGIATAN!C78)","v":0}]
[null,null,{"$f":"KEGIATAN!C79","v":0},{"$f":"KEGIATAN!D79","v":0},{"$f":"KEGIATAN!E79","v":"00:00:00"},null,{"$f":"COUNTA(KEGIATAN!C79)","v":0}]
[null,null,{"$f":"KEGIATAN!C80","v":0},{"$f":"KEGIATAN!D80","v":0},{"$f":"KEGIATAN!E80","v":"00:00:00"},null,{"$f":"COUNTA(KEGIATAN!C80)","v":0}]
[null,null,{"$f":"KEGIATAN!C81","v":0},{"$f":"KEGIATAN!D81","v":0},{"$f":"KEGIATAN!E81","v":"00:00:00"},null,{"$f":"COUNTA(KEGIATAN!C81)","v":0}]
[null,null,{"$f":"KEGIATAN!C82","v":0},{"$f":"KEGIATAN!D82","v":0},{"$f":"KEGIATAN!E82","v":"00:00:00"},null,{"$f":"COUNTA(KEGIATAN!C82)","v":0}]
[null,null,{"$f":"KEGIATAN!C83","v":0},{"$f":"KEGIATAN!D83","v":0},{"$f":"KEGIATAN!E83","v":"00:00:00"},null,{"$f":"COUNTA(KEGIATAN!C83)","v":0}]
[null,null,{"$f":"KEGIATAN!C84","v":0},{"$f":"KEGIATAN!D84","v":0},{"$f":"KEGIATAN!E84","v":"00:00:00"},null,{"$f":"COUNTA(KEGIATAN!C84)","v":0}]
[null,null,{"$f":"KEGIATAN!C85","v":0},{"$f":"KEGIATAN!D85","v":0},{"$f":"KEGIATAN!E85","v":"00:00:00"},null,{"$f":"COUNTA(KEGIATAN!C85)","v":0}]
[null,null,{"$f":"KEGIATAN!C86","v":0},{"$f":"KEGIATAN!D86","v":0},{"$f":"KEGIATAN!E86","v":"00:00:00"},null,{"$f":"COUNTA(KEGIATAN!C86)","v":0}]
[null,null,{"$f":"KEGIATAN!C87","v":0},{"$f":"KEGIATAN!D87","v":0},{"$f":"KEGIATAN!E87","v":"00:00:00"},null,{"$f":"COUNTA(KEGIATAN!C87)","v":0}]
[null,null,{"$f":"KEGIATAN!C88","v":0},{"$f":"KEGIATAN!D88","v":0},{"$f":"KEGIATAN!E88","v":"00:00:00"},null,{"$f":"COUNTA(KEGIATAN!C88)","v":0}]
[null,null,{"$f":"KEGIATAN!C89","v":0},{"$f":"KEGIATAN!D89","v":0},{"$f":"KEGIATAN!E89","v":"00:00:00"},null,{"$f":"COUNTA(KEGIATAN!C89)","v":0}]
[null,null,{"$f":"KEGIATAN!C90","v":0},{"$f":"KEGIATAN!D90","v":0},{"$f":"KEGIATAN!E90","v":"00:00:00"},null,{"$f":"COUNTA(KEGIATAN!C90)","v":0}]
[null,null,{"$f":"KEGIATAN!C91","v":0},{"$f":"KEGIATAN!D91","v":0},{"$f":"KEGIATAN!E91","v":"00:00:00"},null,{"$f":"COUNTA(KEGIATAN!C91)","v":0}]
[null,null,{"$f":"KEGIATAN!C92","v":0},{"$f":"KEGIATAN!D92","v":0},{"$f":"KEGIATAN!E92","v":"00:00:00"},null,{"$f":"COUNTA(KEGIATAN!C92)","v":0}]
[null,null,{"$f":"KEGIATAN!C93","v":0},{"$f":"KEGIATAN!D93","v":0},{"$f":"KEGIATAN!E93","v":"00:00:00"},null,{"$f":"COUNTA(KEGIATAN!C93)","v":0}]
[null,null,{"$f":"KEGIATAN!C94","v":0},{"$f":"KEGIATAN!D94","v":0},{"$f":"KEGIATAN!E94","v":"00:00:00"},null,{"$f":"COUNTA(KEGIATAN!C94)","v":0}]
[null,null,{"$f":"KEGIATAN!C95","v":0},{"$f":"KEGIATAN!D95","v":0},{"$f":"KEGIATAN!E95","v":"00:00:00"},null,{"$f":"COUNTA(KEGIATAN!C95)","v":0}]
[null,null,{"$f":"KEGIATAN!C96","v":0},{"$f":"KEGIATAN!D96","v":0},{"$f":"KEGIATAN!E96","v":"00:00:00"},null,{"$f":"COUNTA(KEGIATAN!C96)","v":0}]
[null,null,{"$f":"KEGIATAN!C97","v":0},{"$f":"KEGIATAN!D97","v":0},{"$f":"KEGIATAN!E97","v":"00:00:00"},null,{"$f":"COUNTA(KEGIATAN!C97)","v":0}]
[null,null,{"$f":"KEGIATAN!C98","v":0},{"$f":"KEGIATAN!D98","v":0},{"$f":"KEGIATAN!E98","v":"00:00:00"},null,{"$f":"COUNTA(KEGIATAN!C98)","v":0}]
[null,null,{"$f":"KEGIATAN!C99","v":0},{"$f":"KEGIATAN!D99","v":0},{"$f":"KEGIATAN!E99","v":"00:00:00"},null,{"$f":"COUNTA(KEGIATAN!C99)","v":0}]
[null,null,{"$f":"KEGIATAN!C100","v":0},{"$f":"KEGIATAN!D100","v":0},{"$f":"KEGIATAN!E100","v":"00:00:00"},null,{"$f":"COUNTA(KEGIATAN!C100)","v":0}]
[null,null,{"$f":"KEGIATAN!C101","v":0},{"$f":"KEGIATAN!D101","v":0},{"$f":"KEGIATAN!E101","v":"00:00:00"},null,{"$f":"COUNTA(KEGIATAN!C101)","v":0}]
[null,null,{"$f":"KEGIATAN!C102","v":0},{"$f":"KEGIATAN!D102","v":0},{"$f":"KEGIATAN!E102","v":"00:00:00"},null,{"$f":"COUNTA(KEGIATAN!C102)","v":0}]
[null,null,{"$f":"KEGIATAN!C103","v":0},{"$f":"KEGIATAN!D103","v":0},{"$f":"KEGIATAN!E103","v":"00:00:00"},null,{"$f":"COUNTA(KEGIATAN!C103)","v":0}]
[null,null,{"$f":"KEGIATAN!C104","v":0},{"$f":"KEGIATAN!D104","v":0},{"$f":"KEGIATAN!E104","v":"00:00:00"},null,{"$f":"COUNTA(KEGIATAN!C104)","v":0}]
[null,null,{"$f":"KEGIATAN!C105","v":0},{"$f":"KEGIATAN!D105","v":0},{"$f":"KEGIATAN!E105","v":"00:00:00"},null,{"$f":"COUNTA(KEGIATAN!C105)","v":0}]
[null,null,{"$f":"KEGIATAN!C106","v":0},{"$f":"KEGIATAN!D106","v":0},{"$f":"KEGIATAN!E106","v":"00:00:00"},null,{"$f":"COUNTA(KEGIATAN!C106)","v":0}]
[null,null,{"$f":"KEGIATAN!C107","v":0},{"$f":"KEGIATAN!D107","v":0},{"$f":"KEGIATAN!E107","v":"00:00:00"},null,{"$f":"COUNTA(KEGIATAN!C107)","v":0}]
[null,null,null,null,{"$f":"BULANAN!B48","v":"versi 12.01.26 by AP_11"}]
[null,null,null,{"$f":"CONCATENATE(\"Tasikmalaya,\",\" \",DATA!D19)","v":"Tasikmalaya, 31 Januari 2026"},null,null,{"$f":"CONCATENATE(DATA!C19,\" \",DATA!D20,\" \",DATA!C21)","v":"31 JANUARI 2026"}]
[null,null,{"$f":"BULANAN!D50","v":"Pejabat Penilai"},{"$f":"BULANAN!I50","v":"Aparatur Sipil Negara (ASN) yang Dinilai"}]
[]
[]
[]
[]
[null,null,{"$f":"BULANAN!D55","v":"H. ENJANG, S.Ag., M.Pd.I."},{"$f":"BULANAN!I55","v":"ARIEF PRIBADI, S.Si."}]
[null,null,{"$f":"BULANAN!D56","v":"NIP : 197406152005011006"},{"$f":"BULANAN!I56","v":"NIP : 198603112020121005"}]